Cogmind - Beta 15 @@@ ROGUE MODE // 2025.10.05 @ 11:18:52 Player: souux Result: Destroyed by C-35 Carver with Carbide Saw Performance ------------- Evolutions (6) 3000 Regions Visited (11) 2200 Robots Destroyed (64) 320 Value Destroyed (2570) 2570 Prototype IDs (26) 520 Alien Tech Used (0) 0 Bonus (1296) 1296 TOTAL SCORE: 9906 Bonus ------- High Alert Combat Kills 16 Met Warlord at Base 500 MAIN.C Attacked Warlord 500 Warlord Defense Kills 280 Cogmind --------- Core Integrity 0/1150 Matter 202/300 Energy 98/100 System Corruption 0% Temperature Cool (0) Movement Core (50) Location -4/Factory Parts ------- > --- POWER (2) -------- (None) > --- PROPULSION (6) --- (None) > --- UTILITY (8) ------ (None) > --- WEAPON (3) ------- (None) > --- INVENTORY (5) ---- High-capacity Matter Pod (150) Triangulator Makeshift ECM Suite Minesniffer Drone Bay (10/10) Peak State ------------ > --- POWER ------------ Micro Antimatter Reactor > --- PROPULSION ------- VTOL Module VTOL Module Improved VTOL Module Biomechanical Wings Cooled Nuclear Pulse Thruster > --- UTILITY ---------- Medium Storage Unit Advanced Weight Redist. System Advanced Visual Processing Unit Hacking Suite Makeshift System Shield Makeshift System Shield Makeshift System Shield > --- WEAPON ----------- Advanced Remote Datajack Power Sword > --- INVENTORY -------- Light Antimatter Reactor Improved Cooling System High-capacity Matter Pod Triangulator Makeshift ECM Suite Reaction Control System Improved Utility Shielding Minesniffer Drone Bay Advanced Plasma Cannon Long-range Missile Launcher [Rating: 68] Favorites ----------- Power Light Ion Engine Engine Light Ion Engine Power Core Nuclear Core Reactor Light Antimatter Reactor Propulsion Improved VTOL Module Treads Improved Treads Wheel Compact Wheel Flight Unit Improved VTOL Module Utility Hacking Suite Device Seismic Detector Storage Medium Storage Unit Processor Advanced Visual Processing Unit Hackware Hacking Suite Protection Hardened Light Armor Plating Weapon Heavy Assault Rifle Energy Gun Particle Gun Energy Cannon Heavy Particle Cannon Ballistic Gun Heavy Assault Rifle Launcher Long-range Missile Launcher Special Weapon Remote Datajack Impact Weapon Great Maul Slashing Weapon Chainsword Build | -11 -10 -9 -8 -7 -6 -5 -5 -5 -5 -4 -4 ------- Run | Yrd Mat Mat Mat Fac Fac Fac Upp Upp War Pro Fac Slots Evolved 12 | . . 2 2 2 2 2 . . . . 2 Power 1 | . . . . . . . . . . . 1 Propulsion 4 | . . . 2 . 1 1 . . . . . Utility 6 | . . 1 . 2 1 1 . . . . 1 Weapon 1 | . . 1 . . . . . . . . . Parts Attached 101 | 7 9 12 8 22 14 3 1 . 11 2 12 Power 17 | 1 1 2 2 3 4 . . . 2 . 2 Engine 8 | 1 1 2 . 2 2 . . . . . . Core 6 | . . . 2 1 2 . . . . . 1 Reactor 3 | . . . . . . . . . 2 . 1 Propulsion 24 | 2 3 1 5 4 2 1 1 . 2 . 3 Treads 2 | . . . . . . . . . . . 2 Leg . | . . . . . . . . . . . . Wheel 11 | 2 3 1 5 . . . . . . . . Hover . | . . . . . . . . . . . . Flight 11 | . . . . 4 2 1 1 . 2 . 1 Utility 34 | 2 2 4 . 8 5 2 . . 6 1 4 Device 14 | 1 . 1 . 3 2 1 . . 2 . 4 Storage 6 | 1 2 1 . 1 . 1 . . . . . Processor 2 | . . . . 1 . . . . . 1 . Hackware 7 | . . . . 2 2 . . . 3 . . Protection 5 | . . 2 . 1 1 . . . 1 . . Artifact . | . . . . . . . . . . . . Weapon 26 | 2 3 5 1 7 3 . . . 1 1 3 Energy Gun 4 | . 2 1 1 . . . . . . . . Energy Cannon 2 | . . . . 1 . . . . . . 1 Ballistic Gun 10 | 2 1 4 . 2 . . . . . . 1 Ballistic Cannon . | . . . . . . . . . . . . Launcher 2 | . . . . 1 . . . . . 1 . Special Weapon 4 | . . . . 1 1 . . . 1 . 1 Impact Weapon 1 | . . . . 1 . . . . . . . Slashing Weapon 3 | . . . . 1 2 . . . . . . Piercing Weapon . | . . . . . . . . . . . . Special Melee Weapon . | . . . . . . . . . . . . Unidentified Prototypes 5 | . . . . 1 2 1 . . 1 . . Corrupted Parts 1 | . . . . . . . . . 1 . . System Corruption 10 | . . . . . . . . . 10 . . Parts Lost 44 | . 5 1 3 1 14 . . . 5 3 12 Power 7 | . 1 1 . . 3 . . . . . 2 Propulsion 18 | . 2 . 2 1 4 . . . 4 . 5 Utility 8 | . . . . . 3 . . . 1 2 2 Weapon 11 | . 2 . 1 . 4 . . . . 1 3 Highest Loss Streak 8 | . 3 1 1 1 6 . . . 3 2 8 To Critical Strikes . | . . . . . . . . . . . . Average Backups 12 | 4 9 17 22 15 9 9 8 8 9 9 5 Power . | . . . 1 . . . . . . 1 . Propulsion 1 | 2 3 4 3 2 . . . . . . . Utility 6 | . 3 6 10 8 7 7 7 7 8 6 4 Weapon 2 | . 1 4 5 3 . 1 1 1 1 1 . Tool/Special . | . . . . . . . . . . . . Unused Backups 24 | . 3 6 7 5 . . . . . . 3 Power 3 | . . . 1 2 . . . . . . . Propulsion 4 | . 2 2 . . . . . . . . . Utility 10 | . 1 . 5 1 . . . . . . 3 Weapon 7 | . . 4 1 2 . . . . . . . Tool/Special . | . . . . . . . . . . . . Average Slot Usage (%) 81 | . 98 98 99 90 75 59 73 76 76 45 41 Engine 5 | . 13 11 2 4 3 2 5 5 3 . . Core 1 | . . . 6 2 2 . . . . . 1 Wheel 11 | . 27 22 35 11 . . . . . . . Flight 11 | . . . . 18 19 14 20 23 24 11 2 Device 9 | . 13 10 7 7 17 10 11 11 6 . 3 Storage 7 | . 14 11 10 7 6 5 5 5 5 5 2 Processor 4 | . . . . 5 6 5 5 5 5 7 9 Hackware 8 | . . . . 12 7 17 17 17 21 15 7 Protection 2 | . . 10 9 1 . . . . . . 4 Energy Gun 3 | . 8 11 9 . . . . . . . . Ballistic Gun 7 | . 19 22 18 6 . . . . . . . Slashing Weapon 2 | . . . . 3 5 2 5 5 5 2 . Peak Build Rating 68 | 7 10 19 27 47 48 51 57 58 68 42 54 Average Rating 32 | 5 8 13 23 37 38 41 54 57 58 36 36 On Entrance 31 | . 7 10 19 27 43 29 51 57 58 42 34 Naked Turns 4 | . . . . . . . . . . . 4 Heaviest Build 141 | 13 48 62 141 117 34 26 26 26 26 18 55 Greatest Support 64 | 20 32 32 64 60 26 26 33 33 34 12 46 Greatest Overweight (x) 13 | 2 1 1 2 2 1 . . . 2 1 13 Average Overweight (x) . | . . 1 . . . . . . . . . Largest Inventory Capacity 25 | 8 20 25 25 25 10 10 10 10 10 10 10 Average Capacity 13 | 7 12 20 23 16 10 10 10 10 10 10 7 Most Carried 25 | 8 16 20 25 25 10 10 9 10 10 10 10 Average Carried 12 | 4 9 17 22 15 9 9 8 8 9 9 5 Final Capacity 25 | 8 20 20 25 10 10 10 10 10 10 10 5 Final Carried 25 | 8 16 20 25 10 10 8 8 10 10 10 4 Class Distribution -------------------- 31% | Mutant 20% | Hacker-Sprinter 16% | Hacker-Mutant 14% | Scavenger-Tank 10% | Scavenger-Mutant 4% | Tank Dominant Class ---------------- Mutant | -10/Materials Tank | -9/Materials Scavenger-Tank | -8/Materials Scavenger-Mutant | -7/Factory Mutant | -6/Factory Hacker-Sprinter | -5/Factory Hacker-Sprinter | -5/Upper Caves Hacker-Sprinter | -5/Upper Caves Hacker-Sprinter | -5/Warlord Hacker-Mutant | -4/Proximity Caves Mutant | -4/Factory Resources | -11 -10 -9 -8 -7 -6 -5 -5 -5 -5 -4 -4 ----------- Run | Yrd Mat Mat Mat Fac Fac Fac Upp Upp War Pro Fac Matter Collected 2744 | 268 461 336 395 255 330 . 80 92 339 22 166 Remotely . | . . . . . . . . . . . . Salvage Created 2727 | 109 489 766 689 58 337 . . . 84 26 169 Parts 146 | 4 24 39 35 7 24 . . . 1 4 8 Haulers Intercepted 1 | . . . 1 . . . . . . . . Recyclers Shooed 4 | . 4 . . . . . . . . . . Parts Field Recycled . | . . . . . . . . . . . . Retrieved Matter . | . . . . . . . . . . . . Parts Self-Destructed 3 | . . . . . . . . 1 . 2 . Prevented . | . . . . . . . . . . . . Kills | -11 -10 -9 -8 -7 -6 -5 -5 -5 -5 -4 -4 ------- Run | Yrd Mat Mat Mat Fac Fac Fac Upp Upp War Pro Fac Combat Hostiles Destroyed 54 | . 9 14 13 2 6 . . . 2 5 3 Melee 8 | . . . . . 6 . . . 2 . . Guns 37 | . 9 14 13 1 . . . . . . . Cannons 2 | . . . . . . . . . . . 2 AOE 7 | . . . . 1 . . . . . 5 1 Classes Destroyed 9 | 2 3 1 2 1 . . . . . . . Tunneler 1 | 1 . . . . . . . . . . . Hauler 1 | . . . 1 . . . . . . . . Recycler 6 | 1 2 2 1 . . . . . . . . Operator 2 | . 1 . 1 . . . . . . . . Swarmer 8 | . 3 . . . . . . . . 5 . Grunt 25 | . 6 9 8 . . . . . . . 2 Sentry 11 | . . 5 4 . 1 . . . . . 1 Hunter 3 | . . . 1 . 2 . . . . . . Programmer 7 | . . . . 2 3 . . . 2 . . Best Kill Streak 5 | 2 3 5 3 2 1 . . . 2 5 2 Combat Bots Only 5 | . 3 5 2 2 1 . . . 2 5 2 Max Kills in Single Turn 2 | 1 1 1 1 1 1 . . . 1 2 1 Gunslinging . | . . . . . . . . . . . . Exploded 2 | . . . . 1 . . . . . 2 1 Melee 1 | . . . . . 1 . . . 1 . . Uniques/NPCs Destroyed . | . . . . . . . . . . . . Combat | -11 -10 -9 -8 -7 -6 -5 -5 -5 -5 -4 -4 -------- Run | Yrd Mat Mat Mat Fac Fac Fac Upp Upp War Pro Fac Hostile Shots Fired 546 | . 51 39 53 34 169 4 . 1 20 51 124 Missed 185 | . 11 8 19 18 62 3 . 1 8 21 34 Hits 361 | . 40 31 34 16 107 1 . . 12 30 90 Melee 15 | . . . . . . . . . . 1 14 Projectile 346 | . 40 31 34 16 107 1 . . 12 29 76 AOE 1 | . . . . . . . . . 1 . . Critical Strikes 17 | . 1 . 1 1 1 . . . . . 13 Actively Blocked 1 | . . . . . . . . . . . 1 Damage Taken 6394 | . 453 436 548 265 1390 21 . . 302 622 2357 Core 2485 | . 88 122 62 52 536 . . . 75 395 1155 Absorbed by Shields 70 | . . . . . . . . . . . 70 Redirected to Shielding 108 | . . . . . . . . . . . 108 Regen/Repaired (Parts) 22 | . . . . . . . . . 22 . . Core Remaining (%) 71 | 100 64 69 88 92 36 . . . . 53 . Volleys Fired 159 | 5 50 31 42 11 3 . . . . 4 13 Largest 3 | 2 2 3 3 2 1 . . . . 1 2 Hottest 131 | 40 105 111 111 75 39 . . . . 43 131 Shots Fired 364 | 10 98 91 120 19 3 . . . . 4 19 Gun 341 | 10 98 91 120 16 . . . . . . 6 Cannon 14 | . . . . 3 . . . . . . 11 Launcher 9 | . . . . . 3 . . . . 4 2 Special . | . . . . . . . . . . . . Kinetic 262 | 10 86 60 84 16 . . . . . . 6 Thermal 93 | . 12 31 36 3 . . . . . . 11 Explosive 9 | . . . . . 3 . . . . 4 2 Electromagnetic . | . . . . . . . . . . . . Robot Hit Streak 16 | 2 10 16 10 5 2 . . . . . 6 Robot Miss Streak 6 | 2 3 3 6 4 . . . . . . 2 Penetration Max 1 | . . . . . . . . . . . 1 Secondary Targets 3 | . 1 . 1 1 . . . . . . . Max Gunslinging Chain 1 | . 1 . 1 1 . . . . . . . Shots Hit Robots 252 | 5 68 58 77 10 16 1 . . 4 . 13 Core Hits 152 | 3 24 30 68 4 9 . . . 2 5 7 Critical Kills 1 | . . 1 . . . . . . . . . Critical Parts Destroyed 2 | 1 1 . . . . . . . . . . Critical Strikes 6 | 1 1 3 . . 1 . . . . . . Burn 2 | . . 2 . . . . . . . . . Destroy 3 | 1 1 1 . . . . . . . . . Sever 1 | . . . . . 1 . . . . . . Melee Attacks 112 | . . . . 47 55 5 . . 5 . . Impact 16 | . . . . 16 . . . . . . . Slashing 96 | . . . . 31 55 5 . . 5 . . Piercing . | . . . . . . . . . . . . Sneak Attacks 3 | . . . . . 3 . . . . . . Combat Hostiles 1 | . . . . . 1 . . . . . . Follow-up Attacks . | . . . . . . . . . . . . Damage Inflicted 5794 | 75 888 705 1177 426 885 63 . . 177 502 896 Guns 3056 | 75 888 705 1049 187 . . . . . . 152 Cannons 337 | . . . . . . . . . . . 337 Explosions 1469 | . . . 128 239 193 . . . . 502 407 Melee 932 | . . . . . 692 63 . . 177 . . Ramming . | . . . . . . . . . . . . Kinetic 2104 | 75 779 303 608 187 . . . . . . 152 Thermal 1714 | . 109 402 441 239 . . . . . . 523 Explosive 1044 | . . . 128 . 193 . . . . 502 221 Electromagnetic . | . . . . . . . . . . . . Impact . | . . . . . . . . . . . . Slashing 932 | . . . . . 692 63 . . 177 . . Piercing . | . . . . . . . . . . . . Highest Corruption 11 | . 5 . . 2 7 . . . 11 11 . Average Corruption 4 | . 4 . . 1 4 . . . 10 11 . Corruption Purged . | . . . . . . . . . . . . Corruption Blocked . | . . . . . . . . . . . . Effects 76 | . 13 . . 12 23 . . . 12 16 . Message Errors 22 | . 4 . . 4 7 . . . 1 6 . Matter Fused 15 | . 3 . . 3 6 . . . 2 1 . Heat Flow Errors 5 | . 2 . . 1 1 . . . . 1 . Energy Discharges 11 | . 3 . . 1 3 . . . 2 2 . Parts Rejected 3 | . . . . . 1 . . . 1 1 . Parts Fused 1 | . . . . 1 . . . . . . . Data Loss (minor) 12 | . 1 . . 2 4 . . . 4 1 . Data Loss (major) 2 | . . . . . 1 . . . 1 . . Alerts 2 | . . . . . . . . . . 2 . Misdirections 3 | . . . . . . . . . 1 2 . Overload Shots . | . . . . . . . . . . . . Overflow Damage 392 | . . . 21 98 111 28 . . 3 56 75 Projectiles . | . . . . . . . . . . . . Explosions 262 | . . . 21 98 12 . . . . 56 75 Melee 130 | . . . . . 99 28 . . 3 . . Knockbacks . | . . . . . . . . . . . . Impact . | . . . . . . . . . . . . Kinetic . | . . . . . . . . . . . . Secondary . | . . . . . . . . . . . . Self-Inflicted Damage 292 | . . . 26 . 110 . . . . 42 114 Shots 7 | . . . 1 . 3 . . . . 1 2 Rammed . | . . . . . . . . . . . . Targets Rammed . | . . . . . . . . . . . . Kicked . | . . . . . . . . . . . . Crushed . | . . . . . . . . . . . . Highest Temperature 448 | . 150 448 258 113 265 . . . . 75 406 Average Temperature 93 | . 48 132 46 50 74 . . . . 38 172 Received Heat Transfer 1288 | . 210 168 207 15 84 . . . 81 111 412 Effects 4 | . . 4 . . . . . . . . . Interference 4 | . . 4 . . . . . . . . . Siege Activations . | . . . . . . . . . . . . Martial Activations . | . . . . . . . . . . . . Shielding Activations . | . . . . . . . . . . . . Robots Disrupted . | . . . . . . . . . . . . Combat Hostiles . | . . . . . . . . . . . . Robots Corrupted . | . . . . . . . . . . . . Combat Hostiles . | . . . . . . . . . . . . Parts Fried . | . . . . . . . . . . . . Impact Corruptions . | . . . . . . . . . . . . Robots Melted . | . . . . . . . . . . . . Combat Hostiles . | . . . . . . . . . . . . Parts Melted 4 | . . . 1 . 2 . . . . . 1 Heat Transferred 2745 | . 272 1073 550 100 . . . . . . 750 Parts Sabotaged . | . . . . . . . . . . . . Parts Stolen . | . . . . . . . . . . . . Parts Stripped . | . . . . . . . . . . . . Power Chain Reactions . | . . . . . . . . . . . . Alert | -11 -10 -9 -8 -7 -6 -5 -5 -5 -5 -4 -4 ------- Run | Yrd Mat Mat Mat Fac Fac Fac Upp Upp War Pro Fac Maximum Alert Level 2 | . . 1 . . . . . . . . 2 Low Security (%) 88 | 100 100 91 100 100 100 100 . . . . . Level 1 6 | . . 8 . . . . . . . . 55 Level 2 4 | . . . . . . . . . . . 44 Level 3 . | . . . . . . . . . . . . Level 4 . | . . . . . . . . . . . . Level 5 . | . . . . . . . . . . . . High Security . | . . . . . . . . . . . . Max Security . | . . . . . . . . . . . . Peak Influence 526 | 5 116 229 191 144 70 17 . . . . 526 Initial 526 | . . . . 39 70 17 . . . . 526 Average 79 | 1 29 69 99 34 17 5 . . . . 389 Influence Increases 3601 | 10 339 422 469 433 387 17 . 45 220 305 954 Destroy 0b10 Robot/C 1080 | . 180 280 260 40 120 . . . 40 100 60 Destroy 0b10 Robot/NC 50 | 10 15 10 15 . . . . . . . . Destroy Leader 292 | . 40 80 82 20 40 . . . . 10 20 Successful Hack 116 | . 13 22 5 12 64 . . . . . . Disable Machine 150 | . . . 60 60 15 . . . . . 15 Destroy Structure 263 | . 1 . 32 76 58 2 . . . . 94 Advance Influence 450 | . . . . . . . . . . . 450 Partial Spotted 285 | . 15 . 15 165 15 15 . . . . 60 Lose Combat Pursuer 915 | . 75 30 . 60 75 . . 45 180 195 255 Influence Decreases 3159 | 10 339 420 382 378 495 53 . 40 167 241 634 Entered New Map 254 | . . . 2 50 74 19 . . 5 58 46 Time Decay 2236 | 10 311 260 350 318 320 34 . 40 112 163 318 Search Patrol Dispatched 150 | . . . . . . . . . . . 150 Lost Part 349 | . 27 10 30 10 82 . . . 50 20 120 Lost Ally 10 | . . . . . 10 . . . . . . Purge Threat 160 | . 1 150 . . 9 . . . . . . Squads Dispatched 26 | . 3 1 3 8 6 1 . . . . 4 Investigation 5 | . . . 1 3 1 . . . . . . Extermination 8 | . . . . 4 3 . . . . . 1 Reinforcement 13 | . 3 1 2 1 2 1 . . . . 3 Assault . | . . . . . . . . . . . . Garrison . | . . . . . . . . . . . . Intercept . | . . . . . . . . . . . . Searches Triggered 1 | . . . . . . . . . . . 1 Construction Impeded 2 | . . . . . 1 . . . . . 1 Haulers Reinforced . | . . . . . . . . . . . . Active Scanning Responses . | . . . . . . . . . . . . Cargo Convoy Interrupts . | . . . . . . . . . . . . Stealth | -11 -10 -9 -8 -7 -6 -5 -5 -5 -5 -4 -4 --------- Run | Yrd Mat Mat Mat Fac Fac Fac Upp Upp War Pro Fac Distress Signals 12 | . 2 3 3 1 1 . . . . . 2 Communications Jammed . | . . . . . . . . . . . . Distress Signals . | . . . . . . . . . . . . Times Spotted 194 | . 21 20 18 11 26 4 . 3 35 25 31 Peak Tracking Total 12 | . 3 6 3 5 7 4 . 3 12 7 9 Tactical Retreats 37 | . 5 2 . 3 6 . . 2 4 8 7 Traps | -11 -10 -9 -8 -7 -6 -5 -5 -5 -5 -4 -4 ------- Run | Yrd Mat Mat Mat Fac Fac Fac Upp Upp War Pro Fac Traps Triggered 12 | . 6 . 1 3 . . . . . . 2 Indirectly . | . . . . . . . . . . . . Trap Hack Attempts . | . . . . . . . . . . . . Triggered . | . . . . . . . . . . . . Disarmed . | . . . . . . . . . . . . Reprogrammed . | . . . . . . . . . . . . Reused . | . . . . . . . . . . . . Traps Extracted . | . . . . . . . . . . . . Installed . | . . . . . . . . . . . . Triggered . | . . . . . . . . . . . . Machines | -11 -10 -9 -8 -7 -6 -5 -5 -5 -5 -4 -4 ---------- Run | Yrd Mat Mat Mat Fac Fac Fac Upp Upp War Pro Fac Machines Disabled 10 | . . . 4 4 1 . . . . . 1 Max in Single Turn 4 | . . . 4 4 1 . . . . . 1 Garrison Access 3 | . . . . 3 . . . . . . . Machines Repaired . | . . . . . . . . . . . . Machines Dismantled . | . . . . . . . . . . . . Machines Sabotaged . | . . . . . . . . . . . . Overloaded Fab Kills . | . . . . . . . . . . . . Hacking | -11 -10 -9 -8 -7 -6 -5 -5 -5 -5 -4 -4 --------- Run | Yrd Mat Mat Mat Fac Fac Fac Upp Upp War Pro Fac Machines Accessed 43 | . 7 7 2 9 6 1 . 1 7 1 2 Terminals 30 | . 7 7 2 5 5 1 . 1 . 1 1 Fabricators 1 | . . . . 1 . . . . . . . Repair Stations . | . . . . . . . . . . . . Recycling Units 1 | . . . . . 1 . . . . . . Scanalyzers 1 | . . . . . . . . . . . 1 Garrison Access 3 | . . . . 3 . . . . . . . Total Hacks 116 | . 19 15 6 25 14 1 . 8 19 1 8 Successful 69 | . 8 8 1 11 8 1 . 8 19 1 4 Failed 47 | . 11 7 5 14 6 . . . . . 4 Catastrophic 6 | . 1 3 . 1 1 . . . . . . Database Lockouts . | . . . . . . . . . . . . Manual 59 | . 11 15 6 14 11 1 . . . . 1 Terminals 78 | . 19 15 6 16 11 1 . 8 . 1 1 Fabricators 3 | . . . . 3 . . . . . . . Repair Stations . | . . . . . . . . . . . . Recycling Units 3 | . . . . . 3 . . . . . . Scanalyzers 7 | . . . . . . . . . . . 7 Garrison Access 6 | . . . . 6 . . . . . . . Terminal Hacks 35 | . 2 2 . 2 1 . . 8 19 1 . Record 16 | . . . . . . . . 8 7 1 . Prototype ID Bank 11 | . . . . 1 . . . . 10 . . Open Door 2 | . . . . . . . . . 2 . . Branch Access Points 1 | . . . . 1 . . . . . . . Terminal Index 1 | . . 1 . . . . . . . . . Unreport Threat 3 | . 1 1 . . 1 . . . . . . Locate Traps 1 | . 1 . . . . . . . . . . Fabricator Hacks 1 | . . . . 1 . . . . . . . Network Status 1 | . . . . 1 . . . . . . . Repair Station Hacks . | . . . . . . . . . . . . Recycling Unit Hacks 1 | . . . . . 1 . . . . . . Retrieve Matter 1 | . . . . . 1 . . . . . . Scanalyzer 4 | . . . . . . . . . . . 4 Insert Component 1 | . . . . . . . . . . . 1 Analyze 3 | . . . . . . . . . . . 3 Garrison Access Hacks 3 | . . . . 3 . . . . . . . Seal Access 3 | . . . . 3 . . . . . . . Unauthorized Hacks 25 | . 6 6 1 5 6 1 . . . . . Terminals 25 | . 6 6 1 5 6 1 . . . . . Assimilate 1 | . . . . . 1 . . . . . . Botnet 23 | . 6 5 1 5 5 1 . . . . . Operators 1 | . . 1 . . . . . . . . . Fabricators . | . . . . . . . . . . . . Repair Stations . | . . . . . . . . . . . . Recycling Units . | . . . . . . . . . . . . Scanalyzers . | . . . . . . . . . . . . Garrison Access . | . . . . . . . . . . . . Data Cores Recovered . | . . . . . . . . . . . . Used . | . . . . . . . . . . . . Hacking Detections 29 | . 5 7 2 7 5 . . 1 . . 2 Full Trace Events 3 | . . . . 2 1 . . . . . . Feedback Events 1 | . . . . . 1 . . . . . . Hackware Fried 1 | . . . . . 1 . . . . . . Feedback Blocked . | . . . . . . . . . . . . Robot Schematics Acquired . | . . . . . . . . . . . . Robots Built . | . . . . . . . . . . . . Authchips . | . . . . . . . . . . . . Time . | . . . . . . . . . . . . Total Robot Build Rating . | . . . . . . . . . . . . Part Schematics Acquired . | . . . . . . . . . . . . Parts Built . | . . . . . . . . . . . . Authchips . | . . . . . . . . . . . . Time . | . . . . . . . . . . . . Total Part Build Rating . | . . . . . . . . . . . . Parts Repaired . | . . . . . . . . . . . . Time . | . . . . . . . . . . . . Parts Recycled . | . . . . . . . . . . . . Recycled Matter . | . . . . . . . . . . . . Retrieved Matter . | . . . . . . . . . . . . Retrieved Components . | . . . . . . . . . . . . Parts Scanalyzed 1 | . . . . . . . . . . . 1 Part Schematics Acquired . | . . . . . . . . . . . . Parts Damaged 1 | . . . . . . . . . . . 1 Bothacking | -11 -10 -9 -8 -7 -6 -5 -5 -5 -5 -4 -4 ------------ Run | Yrd Mat Mat Mat Fac Fac Fac Upp Upp War Pro Fac Used RIF Installer . | . . . . . . . . . . . . Robots Hacked . | . . . . . . . . . . . . Non-combat . | . . . . . . . . . . . . Combat . | . . . . . . . . . . . . Robot Hacks Applied . | . . . . . . . . . . . . Relay Couplers Released . | . . . . . . . . . . . . Fabnet Peak Effective % . | . . . . . . . . . . . . Robots Rewired . | . . . . . . . . . . . . Allies Hacked . | . . . . . . . . . . . . Hacks Repelled . | . . . . . . . . . . . . Allies | -11 -10 -9 -8 -7 -6 -5 -5 -5 -5 -4 -4 -------- Run | Yrd Mat Mat Mat Fac Fac Fac Upp Upp War Pro Fac Total Allies 1 | . . . . . 1 . . . . . . Largest Group 1 | . . . . . 1 . . . . . . Highest-Rated Group 26 | . . . . . 26 . . . . . . Highest-Rated Ally 26 | . . . . . 26 . . . . . . Total Orders . | . . . . . . . . . . . . Ally Attacks . | . . . . . . . . . . . . Total Damage . | . . . . . . . . . . . . Kills . | . . . . . . . . . . . . Allies Corrupted . | . . . . . . . . . . . . Allies Melted . | . . . . . . . . . . . . Intel | -11 -10 -9 -8 -7 -6 -5 -5 -5 -5 -4 -4 ------- Run | Yrd Mat Mat Mat Fac Fac Fac Upp Upp War Pro Fac Active Infowar (turns) 6711 | 32 974 437 102 1673 1298 119 142 106 716 408 704 Optics 4932 | . . . . 1439 1298 119 142 106 716 408 704 Sensors 526 | . . . . . . 83 142 106 195 . . Traps 1368 | . . . . 510 858 . . . . . . Seismic 2628 | 32 974 437 102 630 453 . . . . . . Decoding 870 | . . . . . . . . . . 174 696 ECM 510 | . . . . 49 459 . . . . . 2 Robot Analysis Total . | . . . . . . . . . . . . Derelict Logs Recovered 4 | . . . . . . . 2 1 . 1 . Drone Launches . | . . . . . . . . . . . . Drone Recoveries . | . . . . . . . . . . . . Decoded 0b10 Intel 18 | . . . . . . . . . . . 18 Patrols 6 | . . . . . . . . . . . 6 Reinforcements 1 | . . . . . . . . . . . 1 Guards 11 | . . . . . . . . . . . 11 Exploration | -11 -10 -9 -8 -7 -6 -5 -5 -5 -5 -4 -4 ------------- Run | Yrd Mat Mat Mat Fac Fac Fac Upp Upp War Pro Fac Turns Passed 7897 | 89 1040 699 796 1776 1298 119 142 106 716 408 708 Spaces Moved 8400 | 62 727 362 415 1559 1270 259 454 341 1358 695 898 Core 335 | 7 . . . . . . . . . . 328 Treads 82 | . . . . . . . . . . . 82 Legs . | . . . . . . . . . . . . Wheels 1982 | 55 727 362 415 423 . . . . . . . Hover . | . . . . . . . . . . . . Flight 6001 | . . . . 1136 1270 259 454 341 1358 695 488 Fastest Speed 24 | 50 80 115 100 26 24 30 29 29 24 34 34 Average Speed 60 | 81 97 115 113 62 61 32 29 29 29 56 65 Slowest Speed 700 | 150 115 115 130 126 102 34 30 29 168 101 700 Overloaded Moves . | . . . . . . . . . . . . Propulsion Burnouts . | . . . . . . . . . . . . Robots Hopped 3 | . . . . . . . . . 1 1 1 Potential Cave-ins . | . . . . . . . . . . . . Cave-ins Triggered 1 | . . . . . 1 . . . . . . Exploration Rate (%) 45 | 4 93 27 30 33 38 7 58 56 97 78 26 Regions Visited 11 Branch Regions 4 Pre-discovered Areas . | . . . . . . . . . . . . Known Exits Taken 1 | . . . . . . . . . . 1 . Unknown Exits Taken 10 | 1 1 1 1 1 1 1 1 1 1 . . Scrap Searched 7 | . . . . . . . 2 2 . 3 . Spaces Dug 163 | . . . . 47 51 3 . . . 43 19 Terrain Destroyed 292 | . . . 29 81 78 3 . . . 43 58 Melee 87 | . . . . 47 37 3 . . . . . Projectile 2 | . . . . . . . . . . . 2 AOE 203 | . . . 29 34 41 . . . . 43 56 Terrain Rammed . | . . . . . . . . . . . . Walls Destroyed . | . . . . . . . . . . . . Machines Disabled . | . . . . . . . . . . . . Actions | -11 -10 -9 -8 -7 -6 -5 -5 -5 -5 -4 -4 --------- Run | Yrd Mat Mat Mat Fac Fac Fac Upp Upp War Pro Fac Total 10700 | 90 962 592 652 2263 1685 285 461 347 1664 704 995 Wait 1687 | 2 137 155 149 576 314 16 6 5 276 3 48 Move 8383 | 61 726 361 414 1558 1269 258 453 340 1355 692 896 Hop 3 | . . . . . . . . . 1 1 1 Pick Up 112 | 15 27 17 21 9 10 . 1 2 3 . 7 Fast Attach 20 | . . . . 3 3 2 . . 6 2 4 Attach 72 | 7 13 3 6 7 17 2 1 . 2 1 13 Detach 16 | . . . . 1 7 . . . 4 1 3 Swap 56 | . 3 11 6 25 5 1 . . 5 . . Drop 74 | . 6 14 14 26 2 1 . . 7 . 4 Fire 159 | 5 50 31 42 11 3 . . . . 4 13 Melee 112 | . . . . 47 55 5 . . 5 . . Ram . | . . . . . . . . . . . . Kick . | . . . . . . . . . . . . Crush . | . . . . . . . . . . . . Escape Stasis 4 | . . . . . . . . . . . 4 Rewire . | . . . . . . . . . . . . Trap . | . . . . . . . . . . . . Miscellaneous 2 | . . . . . . . . . . . 2 Route ------- -11/Scrapyard -10/Materials (discovered 4 exits: *Mat x3 / [*Min]) -9/Materials (discovered 2 exits: *Mat / [*Sto]) -8/Materials -7/Factory (discovered 3 exits: *Fac / *Low x2) -6/Factory -5/Factory -5/Upper Caves -5/Upper Caves (discovered 2 exits: *Fac / *War) -5/Warlord -4/Proximity Caves -4/Factory (discovered 1 exit: Res) History --------- Turn | Location | Event 10 | -11/Scrapyard | Discovered new exit (range 15) 90 | -11/Scrapyard | Entered Materials 246 | -10/Materials | Discovered new exit (range 4) 304 | -10/Materials | Build established: Mutant 505 | -10/Materials | Discovered new exit (range 16) 682 | -10/Materials | Discovered new exit (range 7) 772 | -10/Materials | Discovered new exit (range 10) 833 | -10/Materials | Lost 3 parts (1n2w) 1130 | -10/Materials | Entered another Materials area 1130 | -9/Materials | Evolved 2 slots: Utility x1, Weapon x1 1131 | -9/Materials | Discovered new exit (range 16) 1521 | -9/Materials | Build established: Tank 1761 | -9/Materials | Discovered new exit (range 16) 1829 | -9/Materials | Entered another Materials area 1829 | -8/Materials | Evolved 2 slots: Propulsion x2 1889 | -8/Materials | Build established: Scavenger-Tank 2528 | -8/Materials | Discovered new exit (range 16) 2625 | -8/Materials | Entered Factory 2625 | -7/Factory | Evolved 2 slots: Utility x2 3021 | -7/Factory | Build established: Scavenger-Mutant 4007 | -7/Factory | Build established: Hacker-Sprinter 4361 | -7/Factory | Identified exit to Lower Caves 4398 | -7/Factory | Discovered new exit (range 7) 4401 | -7/Factory | Entered another Factory area 4401 | -6/Factory | Evolved 2 slots: Propulsion x1, Utility x1 4558 | -6/Factory | Crushed by falling debris 4566 | -6/Factory | Hacking Suite fried by hacking feedback 4622 | -6/Factory | Lost 3 parts (2n1u) 4980 | -6/Factory | Build established: Mutant 5554 | -6/Factory | Core integrity fell below 50% 5562 | -6/Factory | Spotted B-75 Beast 5585 | -6/Factory | Lost 6 parts (1p1n1u3w) 5694 | -6/Factory | Discovered new exit (range 9) 5699 | -6/Factory | Entered another Factory area 5699 | -5/Factory | Evolved 2 slots: Propulsion x1, Utility x1 5811 | -5/Factory | Discovered new exit (range 9) 5818 | -5/Factory | Entered Upper Caves 5852 | -5/Upper Caves | Learned Factory terminal intel 5891 | -5/Upper Caves | Learned Factory trap positions 5901 | -5/Upper Caves | Discovered new exit (range 7) 5960 | -5/Upper Caves | Entered another Upper Caves area 5971 | -5/Upper Caves | Discovered new exit (range 9) 6000 | -5/Upper Caves | Learned Factory stockpile data 6024 | -5/Upper Caves | Learned location of 2 exits from Lower Caves 6024 | -5/Upper Caves | Learned location of 1 exit from Factory 6024 | -5/Upper Caves | Learned Research trap positions 6024 | -5/Upper Caves | Learned Armory security intel 6024 | -5/Upper Caves | Learned Extension security intel 6024 | -5/Upper Caves | Learned Research terminal intel 6027 | -5/Upper Caves | Discovered new exit (range 18) 6046 | -5/Upper Caves | Build established: Hacker-Sprinter 6066 | -5/Upper Caves | Entered Warlord 6089 | -5/Warlord | Discovered new exit (range 14) 6171 | -5/Warlord | Opened side exit 6242 | -5/Warlord | Visited the Vortex Lab 6264 | -5/Warlord | Warlord's base attacked by MAIN.C 6319 | -5/Warlord | Found Prototype Device 6320 | -5/Warlord | Identified Minesniffer Drone Bay 6330 | -5/Warlord | Met Warlord 6521 | -5/Warlord | System corruption reached 10% 6614 | -5/Warlord | Warlord forces counterattacked 6635 | -5/Warlord | Spotted B-86 Titan 6666 | -5/Warlord | Spotted Executioner 6700 | -5/Warlord | Lost 4 allies 6782 | -5/Warlord | Entered Proximity Caves 6783 | -4/Proximity Caves | Identified exit to Factory 6788 | -4/Proximity Caves | Lost 3 parts (3n) 6808 | -4/Proximity Caves | Lost 10 allies 6929 | -4/Proximity Caves | Spotter reported a threat 7009 | -4/Proximity Caves | Spotter reported a threat 7040 | -4/Proximity Caves | Attracted the attention of an 0b10 checkpoint 7056 | -4/Proximity Caves | Build established: Hacker-Mutant 7173 | -4/Proximity Caves | Spotter reported a threat 7174 | -4/Proximity Caves | Spotted B-86 Titan 7190 | -4/Proximity Caves | Entered Factory 7190 | -4/Factory | Evolved 2 slots: Power x1, Utility x1 7191 | -4/Factory | Identified exit to Research 7192 | -4/Factory | Loaded intel: 75 trap records 7194 | -4/Factory | Loaded intel: 26 terminal locations 7440 | -4/Factory | Search patrols dispatched 7544 | -4/Factory | Lost 8 parts (2p2n1u3w) 7806 | -4/Factory | Build established: Mutant 7851 | -4/Factory | Core integrity fell below 50% 7875 | -4/Factory | Core integrity fell below 20% 7898 | -4/Factory | Destroyed by C-35 Carver with Carbide Saw Last Messages --------------- 07854_ C-35 Carver system corrupted by crushing effect. 07854_ C-35 Carver destroyed. 07854_ A bubble of rippling energy engulfs the area. 07854_ Knocked back. 07857_ Imp. Utility Shielding destroyed. 07861_ Penetrated by Slug. 07864_ Field Propulsion Array destroyed. 07866_ Adv. Power Amplifier severed. 07869_ Adv. Weight Redist. System severed. 07873_ Penetrated by Slug. 07874_ Knocked back. 07874_ Acquired 4 matter. 07875_ W-44 Eye sends out distress signal. 07878_ Exp. Cooling System severed. 07885_ >> DECODED: Security location. 07886_ 0b10 Decoder Chip [Skirmisher] severed. 07889_ Penetrated by Slug. 07890_ Mak. System Shield severed. 07894_ Adv. Visual Processing Unit severed. [Achievement: Back For More] Map ----- +----------------------------------------------------+ | ?????????????????# """?# | | ?????????????????# """ # | | ?????????????????# # | | ?????????????????+ != / | | ?????????????????# == # | | ?????????????????# # ###/#############/ | | ?????? ??????# * ?# #?????????????? | | #????# ##+###########?# #???????????? | | #????# # ### #??????????# " " " | | #????+ # " " " + #??????????# " " " | | #????# # " " " ### #??????????# " " " | | #????# # " " ] " #?# #??????????# " " " | | #????# # " " " #?# #??????????# " " " | | #????# # " " !! " #?# #??????????# " " " | | #????# # " " !! " #?# #??????????# " " ? | | #????# # " " " #?# #??????????#?" " ? | | #????# #?" " " #?# #????????????" " ? | | #????# #?" " " #?# #?????????????? ? | | #????# #? #?# #??????????????##? | | #????# #? [ #?# #???###???????#??? | | ###### ###+############ ####T ####### #??? | | #??? | | k #??? | | #??? | | #### | | @c k ? | | ########+############+############ #######???? | | ?????? ??????# #= / ??# #?????????? | | ???? ????# # # #?????????? | | ??# ??# # """" + #?????????? | | ??# #?# # """" # #?????????? | | ??# [[ """ #?# / # """??# #?????????? | | ??# [[ """ #?# # "????# #?????????? | | ??# [] """ #?# # ??# % #?????????? | | ??# #?# # """" # ###+####### | | ??# """ """ #?# # """" " | | ??# """ """ #?########## """" # | | ??# """ ""???#??????????# """" # | | ??# ??????????????# ?# | | ??####?####???????????????#####??# | | ?????????????????????????????????###+############+ | | ?????????????????????????????????? ?????# | | ???????????????????????????????? ???# | | ??????????????????????????????# ?# | | ??????????????????????????????# [ ## | | ??????????????????????????????# ## | | ??????????????????????????????# ## ! | | ??????????????????????????????# ## = | | ??????????????????????????????# ## | | ??????????????????????????????# ## | +----------------------------------------------------+ Best States ------------- Heat Dissipation 48 Energy Generation 35 Energy Capacity 500 Matter Stores 300 Matter Capacity 300 Sight Range 20 Robot Scan Range 16 Terrain Scan Density 10 ECM Strength 1 Power Amplification 30 Additional Mass Support 9 Armor Coverage 750 Utility Shielding 66 Evasion (%) 65 Recoil Reduction 2 Offensive Hacking 20 Defensive Hacking 33 Item Schematics ----------------- None Robot Schematics ------------------ None Fabricated ------------ Nothing Repaired ---------- Nothing Alien Tech Used ----------------- None Achievements -------------- A Powerful Ally? Back For More Can't Catch Me Charge!!! Slippery One Challenges ------------ None Game ------ Seed TeslaDisruptorFacilitator Manual? 0 Play Time 02:46:29 Cumulative 54.7 hours Start 2025.10.05 @ 08:09:55 End 2025.10.05 @ 11:18:52 Sessions 1 Manual Loads 0 Difficulty Rogue Special Mode None Game No. 50 Rogue 50 Adventurer 0 Explorer 0 Win Type - Total 0 Types 0/0/0/0/0/0/0/0/0/0 Lore% 16 Gallery% 33 Achievement% 31 Wizard Run 0 Options --------- Layout 0 ASCII 0 Keyboard 0 Movement Mouse Keybinds 0 Fullscreen 2 Font 18/X11 Map View 76x50 Zoom Use 19% Tactical HUD 1 Map Filters NONE Filters NONE Steam 1 RUN: a576f5f7-2534-4c86-8148-e8637ff853d7